fUSD/lending_fUSD_20240626
["ID","MTS","AMOUNT","RATE_DAILY","PERIOD"]
[330439121,1719407432476,-169.132292,0.00012662,2]
[330439122,1719407432486,-371.8769279,0.00012662,2]
[330439123,1719407432497,-669.94125223,0.00012662,2]
[330439124,1719407432509,-657.25,0.00012662,2]
[330439125,1719407432571,-502.90722895,0.00012662,2]
[330439126,1719407432583,-5344.99941282,0.00012662,2]
[330439127,1719407432593,-2000.0,0.0001311,3]
[330439128,1719407432603,-23870.0,0.00013209,2]
[330439129,1719407432613,-250.0,0.00013224,2]
[330439130,1719407432623,-1000.0,0.0001333,2]
[330439131,1719407432633,-163.81,0.00013476,2]
[330439132,1719407432650,-1389.50178239,0.00013476,2]
[330439133,1719407432667,-6202.92821761,0.00013476,2]
[330439134,1719407432676,-1222.0,0.00013526,2]
[330439135,1719407432686,-659.16,0.00013649,2]
[330439136,1719407432695,-499.99,0.00013699,2]
[330439137,1719407432706,-150.99,0.00013699,2]
[330439138,1719407432716,-2799.12,0.00013699,2]
[330439139,1719407432726,-272.82,0.00013699,2]
[330439140,1719407432735,-2751.0,0.00013699,2]
[330439141,1719407432745,-468.13,0.00013712,2]
[330439142,1719407432755,-53902.73048763,0.00013721,2]
[330439143,1719407432767,-567.14,0.00013721,2]
[330439146,1719407432779,-678.51776836,0.00013721,2]
[330439148,1719407432790,-8311.72992793,0.00013721,2]
[330439157,1719407432900,-438.97877864,0.00013721,2]
[330439158,1719407432914,-865.46028817,0.00013721,2]
[330439159,1719407432925,-17424.07274544,0.00013721,2]
[330439160,1719407432937,-2686.00226037,0.00013721,2]
[330439161,1719407432949,-684.71908266,0.00013721,2]
[330439162,1719407438742,-1520.39891193,0.00013721,2]
[330439163,1719407438754,-33571.63090001,0.00013721,2]
[330439170,1719407442908,-589702.61884886,0.00013721,2]
[330439171,1719407442921,-168.28,0.00013757,2]
[330439172,1719407442938,-183.77455708,0.0001376,2]
[330439173,1719407442954,-250.0,0.00013777,2]
[330439174,1719407442970,-7466.43418434,0.0001379,2]
[330439175,1719407442984,-2370.92948766,0.00013799,2]
[330439176,1719407443007,-413.07503758,0.00013853,2]
[330439177,1719407443022,-1980.71181,0.0001386,2]
[330439178,1719407443036,-283.98,0.0001388,2]
[330439179,1719407443051,-284595.4988,0.000139,2]
[330439180,1719407443065,-185.61172509,0.000139,2]
[330439181,1719407443081,-162.86944678,0.00013974,2]
[330439182,1719407443096,-6012.38,0.00013974,2]
[330439183,1719407443111,-869885.52153955,0.00014,2]
[330439184,1719407443126,-150.0,0.00014274,2]
[330439185,1719407443142,-251.66,0.00014346,2]
[330439186,1719407443158,-10537.00283536,0.00014445,2]
[330439187,1719407443173,-2370.92948764,0.00014573,2]
[330439188,1719407443189,-24688.9497573,0.00014619,2]
[330439190,1719407443204,-7899.69634566,0.0001462,2]
[330439191,1719407443220,-1340.26171979,0.0001462,2]
[330439192,1719407443234,-155.11465702,0.00014625,2]
[330439194,1719407443250,-7466.43418426,0.00014682,2]
[330439196,1719407443267,-536.04,0.0001473,2]
[330439198,1719407443282,-167.64987169,0.000149,2]
[330439201,1719407443300,-200.0,0.00014932,2]
[330439203,1719407443314,-5039.2833928,0.00014985,2]
[330439206,1719407443330,-3179.0,0.00014986,2]
[330439207,1719407443345,-156.67050622,0.00014995,2]
[330439208,1719407443360,-1000.0,0.00014996,2]
[330439209,1719407443376,-518.04242089,0.00014999,2]
[330439210,1719407443390,-288081.58390925,0.00015,2]
[330439211,1719407443405,-151.0,0.00015,2]
[330439212,1719407443420,-157.813654,0.00015,2]
[330439213,1719407443435,-259.897698,0.00015,2]
[330439214,1719407443451,-259.897698,0.00015,2]
[330439215,1719407443466,-151.0,0.00015,2]
[330439216,1719407443482,-284.678308,0.00015,2]
[330439217,1719407443497,-151.0,0.00015,2]
[330439218,1719407443512,-151.0,0.00015,2]
[330439220,1719407443527,-151.0,0.00015,2]
[330439221,1719407443542,-155.274833,0.00015,2]
[330439222,1719407443557,-151.0,0.00015,2]
[330439223,1719407443571,-186.10987,0.00015,2]
[330439224,1719407443587,-151.0,0.00015,2]
[330439225,1719407443603,-151.0,0.00015,2]
[330439226,1719407443617,-151.0,0.00015,2]
[330439227,1719407443632,-216.960972,0.00015,2]
[330439228,1719407443647,-260.089866,0.00015,2]
[330439229,1719407443662,-216.960972,0.00015,2]
[330439230,1719407443677,-151.0,0.00015,2]
[330439231,1719407443692,-239.386966,0.00015,2]
[330439232,1719407443707,-151.0,0.00015,2]
[330439233,1719407443722,-239.386966,0.00015,2]
[330439234,1719407443737,-151.0,0.00015,2]
[330439235,1719407443752,-532.187199,0.00015,2]
[330439236,1719407443767,-532.187199,0.00015,2]
[330439237,1719407443782,-173.30593,0.00015,2]
[330439238,1719407443799,-151.0,0.00015,2]
[330439239,1719407443813,-173.30593,0.00015,2]
[330439240,1719407443829,-255.039925,0.00015,2]
[330439241,1719407443844,-151.0,0.00015,2]
[330439242,1719407443858,-151.0,0.00015,2]
[330439243,1719407443873,-255.039925,0.00015,2]
[330439244,1719407443887,-151.0,0.00015,2]
[330439245,1719407443902,-1137.180728,0.00015,2]
[330439246,1719407443917,-301.429247,0.00015,2]
[330439247,1719407443931,-1137.180728,0.00015,2]
[330439248,1719407443947,-301.429247,0.00015,2]
[330439249,1719407443961,-151.0,0.00015,2]
[330439250,1719407443976,-171.299741,0.00015,2]
[330439251,1719407443991,-151.0,0.00015,2]
[330439252,1719407444006,-151.0,0.00015,2]
[330439253,1719407444020,-151.0,0.00015,2]
[330439254,1719407444036,-151.0,0.00015,2]
[330439255,1719407444049,-151.0,0.00015,2]
[330439256,1719407444065,-171.299741,0.00015,2]
[330439257,1719407444079,-151.0,0.00015,2]
[330439258,1719407444094,-180.586686,0.00015,2]
[330439259,1719407444109,-151.0,0.00015,2]
[330439260,1719407444124,-180.586686,0.00015,2]
[330439262,1719407444140,-156.261198,0.00015,2]
[330439265,1719407444155,-151.0,0.00015,2]
[330439267,1719407444169,-843.790175,0.00015,2]
[330439269,1719407444183,-151.0,0.00015,2]
[330439270,1719407444198,-843.790175,0.00015,2]
[330439271,1719407444213,-4556.318749,0.00015,2]
[330439272,1719407444229,-151.0,0.00015,2]
[330439273,1719407444246,-4556.318749,0.00015,2]
[330439274,1719407444266,-425.121707,0.00015,2]
[330439275,1719407444281,-425.121707,0.00015,2]
[330439276,1719407444297,-151.0,0.00015,2]
[330439277,1719407444312,-263.803429,0.00015,2]
[330439278,1719407444329,-151.0,0.00015,2]
[330439279,1719407444344,-151.0,0.00015,2]
[330439280,1719407444359,-151.0,0.00015,2]
[330439281,1719407444374,-151.0,0.00015,2]
[330439282,1719407444388,-263.803429,0.00015,2]
[330439283,1719407444403,-268.847573,0.00015,2]
[330439284,1719407444417,-151.0,0.00015,2]
[330439285,1719407444432,-268.847573,0.00015,2]
[330439286,1719407444447,-151.0,0.00015,2]
[330439287,1719407444462,-151.0,0.00015,2]
[330439288,1719407444479,-151.0,0.00015,2]
[330439289,1719407444494,-673.602975,0.00015,2]
[330439290,1719407444509,-673.602975,0.00015,2]
[330439291,1719407444524,-151.0,0.00015,2]
[330439292,1719407444539,-1922.025348,0.00015,2]
[330439293,1719407444552,-151.0,0.00015,2]
[330439294,1719407444567,-151.0,0.00015,2]
[330439295,1719407444582,-1922.025348,0.00015,2]
[330439296,1719407444598,-151.0,0.00015,2]
[330439297,1719407444612,-151.0,0.00015,2]
[330439298,1719407444627,-590.900174,0.00015,2]
[330439299,1719407444641,-590.900174,0.00015,2]
[330439300,1719407444655,-152.744927,0.00015,2]
[330439301,1719407444670,-600.22681417,0.00015062,2]
[330439302,1719407444684,-437.93383648,0.00015062,2]
[330439303,1719407444698,-251.66,0.00015063,2]
[330439304,1719407444712,-1285.71256166,0.00015293,2]
[330439305,1719407444729,-155.0,0.00015294,2]
[330439306,1719407444744,-183.77455705,0.00015295,2]
[330439307,1719407444758,-2370.92948764,0.00015489,2]
[330439308,1719407444767,-7466.43418426,0.00015584,2]
[330439309,1719407444777,-251.66,0.00015781,2]
[330439310,1719407444786,-468.13,0.00015975,2]
[330439311,1719407444795,-200.0,0.0001634,2]
[330439312,1719407444805,-1980.71181,0.0001636,2]
[330439313,1719407444814,-2370.92948764,0.00016405,2]
[330439314,1719407444823,-634.616564,0.00016438,2]
[330439315,1719407445227,-634.616564,0.00016438,2]
[330439316,1719407445269,-7466.43418426,0.00016487,2]
[330439317,1719407445295,-251.66,0.00016498,2]
[330439318,1719407445304,-18220.96677571,0.00016581,2]
[330439319,1719407445313,-18220.96677571,0.00016661,2]
[330439320,1719407445323,-1000.0,0.00016662,2]
[330439321,1719407445334,-183.77455705,0.0001683,2]
[330439322,1719407445343,-163.81,0.00016845,2]
[330439323,1719407445353,-251.66,0.00017215,2]
[330439324,1719407445362,-1327.33369643,0.0001726,2]
[330439325,1719407445372,-2370.92948764,0.00017321,2]
[330439326,1719407445381,-7466.43418426,0.00017389,2]
[330439327,1719407445391,-1647.44876845,0.0001746,2]
[330439328,1719407445400,-1647.44876844,0.0001746,2]
[330439329,1719407445409,-2370.92948764,0.00018236,2]
[330439330,1719407445419,-468.13,0.00018239,2]
[330439331,1719407445428,-3023.727209,0.00018263,2]
[330439332,1719407445438,-7466.43418426,0.00018291,2]
[330439333,1719407445447,-1000.0,0.00018329,2]
[330439334,1719407445456,-183.77455705,0.00018365,2]
[330439335,1719407445466,-12749.19467156,0.00018555,2]
[330439336,1719407445476,-1980.71181,0.0001886,2]
[330439337,1719407445485,-154.08,0.000189,2]
[330439338,1719407445495,-2198.85723835,0.00018988,2]
[330439339,1719407445504,-2828.45274486,0.00018989,2]
[330439340,1719407445513,-1133.92751376,0.00018998,2]
[330439341,1719407445523,-151.0,0.00018999,2]
[330439342,1719407445532,-151.0,0.00018999,2]
[330439343,1719407445541,-151.0,0.00018999,2]
[330439344,1719407445550,-151.0,0.00018999,2]
[330439345,1719407445560,-151.0,0.00018999,2]
[330439346,1719407445569,-151.0,0.00018999,2]
[330439347,1719407445579,-151.0,0.00018999,2]
[330439348,1719407445587,-176.238307,0.00018999,2]
[330439349,1719407445598,-151.0,0.00018999,2]
[330439350,1719407445607,-358.906957,0.00018999,2]
[330439351,1719407445617,-151.0,0.00018999,2]
[330439352,1719407445626,-358.906957,0.00018999,2]
[330439353,1719407445635,-151.0,0.00018999,2]
[330439354,1719407445645,-151.0,0.00018999,2]
[330439355,1719407445655,-640.0,0.000191,3]
[330439356,1719407445664,-2690.0,0.000191,3]
[330439357,1719407445674,-2370.92948764,0.00019152,2]
[330439358,1719407445683,-151.0,0.00019177,2]
[330439359,1719407445692,-151.0,0.00019177,2]
[330439360,1719407445701,-151.0,0.00019177,2]
[330439361,1719407445711,-151.0,0.00019177,2]
[330439362,1719407445721,-151.0,0.00019177,2]
[330439363,1719407445731,-151.0,0.00019178,2]
[330439364,1719407445740,-151.0,0.00019178,2]
[330439365,1719407445750,-151.0,0.00019178,2]
[330439366,1719407445760,-164.948231,0.00019178,2]
[330439367,1719407445769,-226.776782,0.00019178,2]
[330439368,1719407445780,-164.948231,0.00019178,2]
[330439369,1719407445790,-226.776782,0.00019178,2]
[330439370,1719407445800,-151.0,0.00019178,2]
[330439371,1719407445810,-259.897698,0.00019178,2]
[330439372,1719407445820,-259.897698,0.00019178,2]
[330439373,1719407445830,-151.0,0.00019178,2]
[330439374,1719407445839,-151.0,0.00019178,2]
[330439375,1719407445848,-151.0,0.00019178,2]
[330439376,1719407445858,-151.0,0.00019178,2]
[330439377,1719407445870,-151.0,0.00019178,2]
[330439378,1719407445879,-151.0,0.00019178,2]
[330439379,1719407445889,-151.0,0.00019178,2]
[330439380,1719407445899,-216.960972,0.00019178,2]
[330439381,1719407445908,-216.960972,0.00019178,2]
[330439382,1719407445917,-239.386966,0.00019178,2]
[330439383,1719407445927,-239.386966,0.00019178,2]
[330439384,1719407445937,-151.0,0.00019178,2]
[330439385,1719407445947,-255.039925,0.00019178,2]
[330439386,1719407445957,-255.039925,0.00019178,2]
[330439387,1719407445967,-500.0,0.00019178,2]
[330439388,1719407445977,-550.0,0.00019178,2]
[330439389,1719407445987,-272.82,0.00019178,2]
[330439390,1719407445996,-250.0,0.00019178,2]
[330439391,1719407446005,-300.0,0.00019178,2]
[330439392,1719407446014,-300.0,0.00019178,2]
[330439393,1719407446023,-300.0,0.00019178,2]
[330439394,1719407446033,-300.0,0.00019178,2]
[330439395,1719407446042,-300.0,0.00019178,2]
[330439396,1719407446052,-300.0,0.00019178,2]
[330439397,1719407446061,-300.0,0.00019178,2]
[330439398,1719407446070,-300.0,0.00019178,2]
[330439399,1719407446079,-300.0,0.00019178,2]
[330439401,1719407446089,-300.0,0.00019178,2]
[330439402,1719407446098,-300.0,0.00019178,2]
[330439403,1719407446107,-7466.43418426,0.00019193,2]
[330439404,1719407446117,-150.0,0.000192,2]
[330439405,1719407446126,-1012.87391772,0.00019319,2]
[330439406,1719407446135,-2375.74966593,0.00019319,2]
[330439407,1719407446145,-253.90432169,0.00019319,2]
[330439408,1719407446155,-717.18626309,0.00019319,2]
[330439409,1719407446164,-155.08916319,0.0001932,2]
[330439410,1719407446174,-155.0,0.0001932,2]
[330439411,1719407446183,-279.32775313,0.0001932,2]
[330439412,1719407446192,-242.26461164,0.0001932,2]
[330439413,1719407446201,-196.20443442,0.0001932,2]
[330439414,1719407446210,-155.08155448,0.0001932,2]
[330439415,1719407446220,-155.0,0.0001932,2]
[330439417,1719407446230,-501.27197359,0.0001932,2]
[330439418,1719407446239,-523.65374717,0.0001932,2]
[330439419,1719407446250,-238.13830956,0.0001932,2]
[330439420,1719407446261,-412.61839352,0.0001932,2]
[330439421,1719407446270,-285.62532265,0.0001932,2]
[330439422,1719407446280,-597.80485648,0.0001932,2]
[330439423,1719407446290,-366.11090361,0.0001932,2]
[330439424,1719407446300,-365.64945704,0.0001932,2]
[330439425,1719407446310,-226.97769319,0.0001932,2]
[330439426,1719407446320,-2491.27644101,0.0001932,2]
[330439427,1719407446330,-176.50840987,0.0001932,2]
[330439428,1719407446342,-155.12075899,0.0001932,2]
[330439429,1719407446352,-3639.9126075,0.0001932,2]
[330439430,1719407446362,-715.71837698,0.00019321,2]
[330439431,1719407446371,-155.0,0.00019321,4]
[330439432,1719407446381,-212.39466898,0.00019321,2]
[330439433,1719407446391,-283.54219834,0.00019321,2]
[330439434,1719407446400,-155.2907514,0.00019321,2]
[330439435,1719407446409,-325.59685439,0.00019321,2]
[330439436,1719407446419,-208.32626621,0.00019321,2]
[330439437,1719407446428,-155.0,0.00019321,2]
[330439438,1719407446437,-165.2402831,0.00019321,2]
[330439439,1719407446447,-258.61409544,0.00019321,2]
[330439440,1719407446456,-160.14210482,0.00019321,2]
[330439441,1719407446465,-155.16688485,0.00019321,2]
[330439442,1719407446475,-500.0,0.00019321,2]
[330439443,1719407446484,-182.71140884,0.00019321,2]
[330439444,1719407446494,-155.17180538,0.00019321,2]
[330439445,1719407446503,-155.35299648,0.00019321,2]
[330439446,1719407446512,-364.80598737,0.00019321,2]
[330439447,1719407446521,-200.04101874,0.00019321,4]
[330439448,1719407446531,-533.17716908,0.00019321,2]
[330439450,1719407446540,-647.07170086,0.00019321,2]
[330439451,1719407446550,-185.2934997,0.00019322,2]
[330439452,1719407446559,-202.53094413,0.00019322,2]
[330439453,1719407446568,-1054.20873751,0.00019322,2]
[330439454,1719407446578,-323.82544687,0.00019322,2]
[330439455,1719407446588,-155.0,0.00019322,2]
[330439456,1719407446598,-1269.62890364,0.00019322,2]
[330439457,1719407446607,-155.0,0.00019323,2]
[330439458,1719407446617,-151.0,0.00019323,2]
[330439459,1719407446626,-151.0,0.00019324,2]
[330439460,1719407446636,-151.0,0.00019324,2]
[330439461,1719407446645,-151.0,0.00019324,2]
[330439462,1719407446655,-151.0,0.00019324,2]
[330439463,1719407446664,-151.0,0.00019324,2]
[330439464,1719407446674,-151.0,0.00019324,2]
[330439465,1719407446683,-151.0,0.00019324,2]
[330439466,1719407446692,-151.0,0.00019324,2]
[330439467,1719407446702,-151.0,0.00019324,2]
[330439468,1719407446711,-151.0,0.00019324,2]
[330439469,1719407446721,-152.88121,0.00019324,2]
[330439470,1719407446731,-151.0,0.00019324,2]
[330439471,1719407446741,-5168.0,0.00019386,2]
[330439472,1719407446751,-291.0,0.00019386,2]
[330439473,1719407446760,-37495.838,0.00019386,2]
[330439474,1719407446769,-1197.0,0.00019386,2]
[330439475,1719407446778,-5800.0,0.00019386,2]
[330439476,1719407446788,-1068.0,0.00019386,2]
[330439477,1719407446797,-151.0,0.00019688,2]
[330439478,1719407446806,-1922.025348,0.00019688,2]
[330439479,1719407446816,-151.0,0.00019688,2]
[330439480,1719407446825,-151.0,0.00019688,2]
[330439481,1719407446834,-1922.025348,0.00019688,2]
[330439482,1719407446843,-590.900174,0.00019688,2]
[330439483,1719407446853,-590.900174,0.00019688,2]
[330439484,1719407446862,-300.0,0.00019691,2]
[330439485,1719407446871,-250.0,0.00019748,2]
[330439486,1719407446881,-3977.16788692,0.00019819,2]
[330439487,1719407446891,-183.77455705,0.000199,2]
[330439488,1719407446900,-4556.318749,0.00019916,2]
[330439489,1719407446909,-4556.318749,0.00019916,2]
[330439490,1719407446919,-425.121707,0.00019916,2]
[330439491,1719407446928,-425.121707,0.00019916,2]
[330439492,1719407446939,-263.803429,0.00019916,2]
[330439493,1719407446949,-151.0,0.00019916,2]
[330439494,1719407446958,-151.0,0.00019916,2]
[330439495,1719407446968,-263.803429,0.00019916,2]
[330439496,1719407446978,-151.0,0.00019916,2]
[330439497,1719407446987,-298.427256,0.00019916,2]
[330439498,1719407446996,-673.602975,0.00019916,2]
[330439499,1719407447006,-673.602975,0.00019916,2]
[330439500,1719407447015,-151.0,0.00019918,2]
[330439501,1719407447025,-301.429247,0.00019918,2]
[330439502,1719407447034,-301.429247,0.00019918,2]
[330439504,1719407447044,-151.0,0.00019918,2]
[330439505,1719407447053,-151.0,0.00019918,2]
[330439506,1719407447062,-151.0,0.00019918,2]
[330439507,1719407447071,-151.0,0.00019918,2]
[330439508,1719407447081,-171.299741,0.00019918,2]
[330439509,1719407447090,-151.0,0.00019918,2]
[330439510,1719407447099,-151.0,0.00019918,2]
[330439511,1719407447108,-171.299741,0.00019918,2]
[330439512,1719407447118,-267.492655,0.00019918,2]
[330439513,1719407447128,-180.586686,0.00019918,2]
[330439514,1719407447138,-151.0,0.00019918,2]
[330439515,1719407447147,-180.586686,0.00019918,2]
[330439516,1719407447156,-151.0,0.00019918,2]
[330439517,1719407447167,-843.790175,0.00019918,2]
[330439518,1719407447176,-634.616564,0.00019918,2]
[330439519,1719407447186,-634.616564,0.00019918,2]
[330439521,1719407447195,-843.790175,0.00019918,2]
[330439523,1719407447204,-151.0,0.00019918,2]
[330439525,1719407447214,-151.0,0.00019918,2]
[330439527,1719407447224,-268.847573,0.00019918,2]
[330439529,1719407447233,-268.847573,0.00019918,2]
[330439531,1719407447242,-151.0,0.00019918,2]
[330439533,1719407447255,-312.75632407,0.00019918,2]
[330439535,1719407447264,-300.0,0.00019918,2]
[330439536,1719407447274,-300.0,0.00019918,2]
[330439539,1719407447284,-300.0,0.00019918,2]
[330439541,1719407447294,-300.0,0.00019918,2]
[330439543,1719407447304,-300.0,0.00019918,2]
[330439545,1719407447313,-300.0,0.00019918,2]
[330439547,1719407447322,-300.0,0.00019918,2]
[330439548,1719407447334,-300.0,0.00019918,2]
[330439549,1719407447346,-151.0,0.00019919,2]
[330439550,1719407447356,-246.421636,0.00019919,2]
[330439551,1719407447366,-246.421636,0.00019919,2]
[330439552,1719407447375,-151.0,0.00019919,2]
[330439553,1719407447384,-255.09474,0.00019919,2]
[330439554,1719407447394,-151.0,0.00019919,2]
[330439555,1719407447403,-255.09474,0.00019919,2]
[330439556,1719407447412,-151.0,0.00019919,2]
[330439557,1719407447422,-162.305789,0.00019919,2]
[330439558,1719407447431,-162.305789,0.00019919,2]
[330439559,1719407447440,-151.0,0.00019919,2]
[330439560,1719407447448,-151.0,0.00019919,2]
[330439561,1719407447457,-151.0,0.00019919,2]
[330439562,1719407447467,-151.0,0.00019919,2]
[330439563,1719407447479,-532.187199,0.00019919,2]
[330439564,1719407447488,-532.187199,0.00019919,2]
[330439565,1719407447497,-173.30593,0.00019919,2]
[330439566,1719407447510,-151.0,0.00019919,2]
[330439567,1719407447520,-173.30593,0.00019919,2]
[330439568,1719407447530,-151.0,0.00019919,2]
[330439569,1719407447540,-151.0,0.00019919,2]
[330439570,1719407447550,-1137.180728,0.00019919,2]
[330439571,1719407447561,-1137.180728,0.00019919,2]
[330439572,1719407447571,-150.0,0.0001992,2]
[330439573,1719407447580,-1830.0,0.0001992,2]
[330439574,1719407447589,-1272.0,0.0001992,2]
[330439575,1719407447604,-1655.0,0.0001992,2]
[330439576,1719407447614,-359.0,0.0001992,2]
[330439577,1719407447623,-812.0,0.0001992,2]
[330439578,1719407447632,-617.0,0.0001992,2]
[330439579,1719407447642,-443.0,0.0001992,2]
[330439580,1719407447652,-448.0,0.0001992,2]
[330439581,1719407447661,-1304.0,0.0001992,2]
[330439582,1719407447670,-2412.0,0.0001992,2]
[330439583,1719407447680,-150.0,0.0001992,2]
[330439584,1719407447689,-3201.0,0.0001992,2]
[330439585,1719407447698,-1984.0,0.0001992,2]
[330439586,1719407447707,-547.0,0.0001992,2]
[330439587,1719407447716,-1000.0,0.00019995,2]
[330439588,1719407447728,-300.0,0.00019999,2]
[330439589,1719407447737,-300.0,0.00019999,2]
[330439590,1719407447746,-300.0,0.00019999,2]
[330439591,1719407447757,-300.0,0.00019999,2]
[330439592,1719407447766,-300.0,0.00019999,2]
[330439593,1719407447776,-300.0,0.00019999,2]
[330439594,1719407447785,-300.0,0.00019999,2]
[330439595,1719407447794,-300.0,0.00019999,2]
[330439596,1719407447804,-300.0,0.00019999,2]
[330439597,1719407447813,-300.0,0.00019999,2]
[330439598,1719407447823,-300.0,0.00019999,2]
[330439599,1719407447833,-300.0,0.00019999,2]
[330439600,1719407447842,-300.0,0.00019999,2]
[330439601,1719407447851,-300.0,0.00019999,2]
[330439602,1719407447861,-421.64537246,0.00019999,2]
[330439603,1719407447870,-669.96579635,0.0002,2]
[330439604,1719407447880,-50000.0,0.0002,3]
[330439605,1719407447890,-64786.0,0.0002,3]
[330439606,1719407447899,-866.64783494,0.0002,2]
[330439607,1719407447910,-151.0,0.0002,2]
[330439608,1719407447919,-183.782328,0.0002,2]
[330439609,1719407447928,-151.0,0.0002,2]
[330439610,1719407447938,-151.0,0.0002,2]
[330439611,1719407447947,-151.0,0.0002,2]
[330439612,1719407447958,-151.0,0.0002,2]
[330439613,1719407447967,-151.0,0.0002,2]
[330439614,1719407447981,-151.542055,0.0002,2]
[330439615,1719407447991,-151.0,0.0002,2]
[330439616,1719407448002,-151.0,0.0002,2]
[330439617,1719407448012,-151.0,0.0002,2]
[330439618,1719407448022,-151.0,0.0002,2]
[330439619,1719407448031,-151.0,0.0002,2]
[330439620,1719407448041,-151.0,0.0002,2]
[330439621,1719407448050,-257.30055368,0.0002,2]
[330439622,1719407448060,-246.421636,0.0002,2]
[330439623,1719407448070,-246.421636,0.0002,2]
[330439624,1719407448079,-151.680931,0.0002,2]
[330439625,1719407448089,-255.09474,0.0002,2]
[330439626,1719407448099,-151.0,0.0002,2]
[330439627,1719407448109,-255.09474,0.0002,2]
[330439628,1719407448119,-151.0,0.0002,2]
[330439629,1719407448128,-155.0,0.0002,2]
[330439630,1719407448138,-162.305789,0.0002,2]
[330439631,1719407448148,-162.305789,0.0002,2]
[330439632,1719407448159,-151.0,0.0002,2]
[330439633,1719407448168,-151.0,0.0002,2]
[330439634,1719407448178,-151.0,0.0002,2]
[330439635,1719407448187,-154.543153,0.0002,2]
[330439636,1719407448200,-151.0,0.0002,2]
[330439637,1719407448209,-151.0,0.0002,2]
[330439638,1719407448219,-151.0,0.0002,2]
[330439639,1719407448229,-151.0,0.0002,2]
[330439640,1719407448239,-151.0,0.0002,2]
[330439641,1719407448249,-151.0,0.0002,2]
[330439642,1719407448263,-151.0,0.0002,2]
[330439643,1719407448274,-151.0,0.0002,2]
[330439644,1719407448284,-151.0,0.0002,2]
[330439645,1719407448296,-358.906957,0.0002,2]
[330439646,1719407448305,-151.0,0.0002,2]
[330439647,1719407448315,-358.906957,0.0002,2]
[330439648,1719407448326,-151.0,0.0002,2]
[330439649,1719407448342,-151.0,0.0002,2]
[330439650,1719407448352,-271.321109,0.0002,2]
[330439651,1719407448362,-283.158567,0.0002,2]
[330439652,1719407448372,-151.0,0.0002,2]
[330439653,1719407448383,-164.948231,0.0002,2]
[330439654,1719407448393,-226.776782,0.0002,2]
[330439655,1719407448402,-164.948231,0.0002,2]
[330439656,1719407448411,-226.776782,0.0002,2]
[330439657,1719407448421,-151.0,0.0002,2]
[330439658,1719407448431,-151.0,0.0002,2]
[330439659,1719407448652,-151.0,0.0002,2]
[330439660,1719407448667,-151.0,0.0002,2]
[330439661,1719407448676,-151.0,0.0002,2]
[330439662,1719407448686,-151.0,0.0002,2]
[330439663,1719407448695,-151.0,0.0002,2]
[330439664,1719407448705,-151.0,0.0002,2]
[330439665,1719407448715,-218.2,0.0002,2]
[330439666,1719407448726,-151.0,0.0002,2]
[330439667,1719407448736,-259.897698,0.0002,2]
[330439668,1719407448747,-259.897698,0.0002,2]
[330439669,1719407448757,-151.0,0.0002,2]
[330439670,1719407448766,-151.0,0.0002,2]